bitfinex-derivatives/quotes_BTCF0:USTF0_20260119
["timestamp","ask_amount","ask_price","bid_price","bid_amount"]
[1768796147392,0.00937066,92674.0,92661.0,0.10791153]
[1768796149901,0.010796,92671.0,92661.0,0.10791153]
[1768796150188,0.00937066,92666.0,92653.0,0.09716]
[1768796150890,0.010796,92670.0,92653.0,0.09716]
[1768796151091,0.010796,92670.0,92654.0,0.10792201]
[1768796151895,0.010797,92668.0,92654.0,0.10792201]
[1768796154892,0.010797,92666.0,92654.0,0.10792201]
[1768796155094,0.010797,92666.0,92653.0,0.09716]
[1768796157096,0.010797,92664.0,92653.0,0.09716]
[1768796157484,0.010797,92667.0,92653.0,0.09716]
[1768796160304,0.00937066,92669.0,92653.0,0.09716]
[1768796160599,0.010797,92668.0,92653.0,0.09716]
[1768796161705,0.00946307,92660.0,92649.0,0.00237457]
[1768796162894,0.00946307,92660.0,92650.0,0.14550589]
[1768796163094,0.02026107,92660.0,92650.0,0.14550589]
[1768796163498,0.02026107,92660.0,92649.0,0.00237457]
[1768796163991,0.14550589,92660.0,92642.0,0.05039868]
[1768796164298,0.010798,92653.0,92642.0,0.05039868]
[1768796164500,0.01903449,92655.0,92644.0,6.8e-07]
[1768796164801,0.010799,92650.0,92640.0,0.14550589]
[1768796165295,0.010799,92648.0,92637.0,0.09716]
[1768796165498,0.00946307,92644.0,92632.0,0.09716]
[1768796167208,0.0108,92643.0,92632.0,0.09716]
[1768796167401,0.02983449,92643.0,92632.0,0.09716]
[1768796168101,0.02026307,92643.0,92632.0,0.09716]
[1768796168302,0.02026307,92643.0,92630.0,0.16203106]
[1768796170308,0.00946307,92649.0,92633.0,0.14550589]
[1768796170500,0.00946307,92649.0,92640.0,0.14550589]
[1768796170810,0.010799,92650.0,92631.0,0.00859144]
[1768796170998,0.010799,92650.0,92639.0,0.14550589]
[1768796172009,0.010799,92650.0,92631.0,0.00859144]
[1768796172612,0.02026107,92654.0,92635.0,0.0108]
[1768796173009,0.010799,92651.0,92631.0,0.01939244]
[1768796175113,0.00957142,92653.0,92631.0,0.01939244]
[1768796175406,0.010799,92652.0,92631.0,0.01939244]
[1768796178213,0.00946307,92649.0,92631.0,0.010801]
[1768796178616,0.00946307,92648.0,92631.0,0.010801]
[1768796178911,0.00946307,92647.0,92630.0,0.16203106]
[1768796179215,0.00946307,92645.0,92630.0,0.01652517]
[1768796179415,0.00946307,92645.0,92625.0,0.107962]
[1768796179811,0.00946307,92645.0,92627.0,0.010801]
[1768796181016,0.00946307,92645.0,92627.0,0.02361223]
[1768796181814,0.00946307,92645.0,92630.0,0.14550589]
[1768796182207,0.00957142,92649.0,92631.0,0.010801]
[1768796185318,0.00946307,92651.0,92631.0,0.010801]
[1768796185517,0.02049009,92649.0,92628.0,0.010801]
[1768796186614,0.010799,92647.0,92628.0,0.010801]
[1768796186814,0.010799,92645.0,92627.0,0.02153251]
[1768796187422,0.0108,92642.0,92627.0,0.01281123]
[1768796187618,0.0108,92642.0,92625.0,0.09716]
[1768796187819,0.03019996,92645.0,92625.0,0.09716]
[1768796188016,0.03019996,92645.0,92626.0,0.10795114]
[1768796188707,0.03019996,92645.0,92626.0,0.12080074]
[1768796189710,0.00969109,92637.0,92626.0,0.0128496]
[1768796189911,0.00969109,92637.0,92624.0,0.00237519]
[1768796191521,0.00969109,92636.0,92624.0,0.00237519]
[1768796191820,0.01940096,92634.0,92624.0,0.01543509]
[1768796192022,0.00969109,92634.0,92624.0,0.01543509]
[1768796194611,0.0108,92638.0,92624.0,0.01543509]
[1768796198825,0.02053678,92638.0,92624.0,0.01543509]
[1768796199322,0.03015008,92638.0,92624.0,0.01543509]
[1768796199724,0.0108,92636.0,92624.0,0.01543509]
[1768796200624,0.00973678,92637.0,92624.0,0.01543509]
[1768796202927,0.02053678,92637.0,92624.0,0.01543509]
[1768796208629,0.00973678,92636.0,92624.0,0.01543509]
[1768796220156,0.0108,92638.0,92624.0,0.01543509]
[1768796220352,0.0108,92636.0,92624.0,0.01543509]
[1768796221354,0.01827813,92638.0,92624.0,0.01543509]
[1768796221856,0.00016192,92640.0,92628.0,0.010801]
[1768796222054,0.00016192,92640.0,92624.0,0.02623709]
[1768796222245,0.00016192,92640.0,92626.0,0.010801]
[1768796222754,0.00016192,92640.0,92628.0,0.010801]
[1768796222944,0.00016192,92640.0,92625.0,0.010802]
[1768796223345,0.00016192,92640.0,92624.0,0.01543509]
[1768796224151,0.00912855,92629.0,92618.0,0.01849403]
[1768796224552,0.00912855,92629.0,92619.0,0.10795405]
[1768796225256,0.00912855,92629.0,92619.0,0.12023767]
[1768796225758,0.00914958,92633.0,92619.0,0.12023767]
[1768796225953,0.010799,92652.0,92631.0,0.00919227]
[1768796226160,0.02410376,92651.0,92631.0,0.00919227]
[1768796226346,0.02410376,92650.0,92631.0,0.00919227]
[1768796226548,0.02410376,92649.0,92631.0,0.00919227]
[1768796226748,0.02410376,92648.0,92631.0,0.00919227]
[1768796226957,0.02410376,92647.0,92631.0,0.00919227]
[1768796227160,0.02410376,92646.0,92630.0,0.010801]
[1768796227360,0.02410376,92645.0,92626.0,0.00919227]
[1768796227654,0.00914958,92643.0,92623.0,0.010802]
[1768796227858,0.00914958,92643.0,92620.0,0.00919227]
[1768796228058,0.00914958,92643.0,92624.0,0.10794997]
[1768796228358,0.00914958,92643.0,92620.0,0.00919227]
[1768796228557,0.00914958,92643.0,92625.0,0.010802]
[1768796229660,0.00914958,92641.0,92621.0,0.010802]
[1768796230061,0.00914958,92641.0,92621.0,0.11875372]
[1768796231358,0.00914958,92641.0,92624.0,0.010802]
[1768796232060,0.00914958,92641.0,92621.0,0.010802]
[1768796232463,0.00914958,92641.0,92621.0,0.11875547]
[1768796233165,0.00914958,92641.0,92624.0,0.010802]
[1768796235762,0.00914958,92641.0,92621.0,0.010802]
[1768796236067,0.01827813,92641.0,92621.0,0.11875547]
[1768796236967,0.01827813,92640.0,92621.0,0.11875547]
[1768796237168,0.00914958,92639.0,92621.0,0.11875547]
[1768796238873,0.00914958,92639.0,92621.0,0.10795347]
[1768796239272,0.00914958,92639.0,92622.0,0.010802]
[1768796239872,0.00914958,92639.0,92623.0,0.10795638]
[1768796240772,0.00912855,92640.0,92623.0,0.10795638]
[1768796241573,0.00912855,92640.0,92624.0,0.010802]
[1768796242568,0.00237468,92644.0,92627.0,0.010801]
[1768796242773,0.02400856,92643.0,92629.0,0.010801]
[1768796242981,0.00237468,92644.0,92629.0,0.010801]
[1768796243275,0.02400856,92643.0,92629.0,0.010801]
[1768796243475,0.00237468,92644.0,92631.0,0.010801]
[1768796244669,0.00237468,92644.0,92633.0,0.010801]
[1768796244976,0.00237468,92644.0,92634.0,0.14554002]
[1768796245176,0.00237468,92644.0,92635.0,0.0108]
[1768796245376,0.00237468,92644.0,92633.0,0.010801]
[1768796245577,0.00237468,92644.0,92634.0,0.14554002]
[1768796245878,0.00237468,92644.0,92633.0,0.010801]
[1768796246877,0.00237468,92644.0,92630.0,0.15634102]
[1768796247873,0.00237468,92644.0,92632.0,0.010801]
[1768796249576,0.00237468,92644.0,92634.0,0.010801]
[1768796250180,0.00237468,92644.0,92631.0,0.010801]
[1768796250582,0.00237468,92644.0,92633.0,0.010801]
[1768796253484,0.00237468,92644.0,92635.0,0.0108]
[1768796253691,0.0972,92648.0,92635.0,0.0108]
[1768796253876,0.02411306,92647.0,92635.0,0.0108]
[1768796254077,0.02411306,92646.0,92635.0,0.0108]
[1768796254277,0.02411306,92645.0,92635.0,0.0108]
[1768796254477,0.0972,92648.0,92635.0,0.0108]
[1768796254777,0.02411696,92647.0,92635.0,0.0108]
[1768796254976,0.02411696,92646.0,92635.0,0.0108]
[1768796255178,0.02411696,92645.0,92635.0,0.0108]
[1768796255486,0.0972,92652.0,92638.0,0.0108]
[1768796255687,0.0972,92652.0,92640.0,0.14554002]
[1768796256078,0.00943999,92657.0,92640.0,0.14554002]
[1768796256286,0.0972,92656.0,92640.0,0.14554002]
[1768796257583,0.0972,92656.0,92640.0,0.15634002]
[1768796258985,0.0972,92656.0,92640.0,0.14554002]
[1768796259590,0.0972,92656.0,92641.0,0.0108]
[1768796259785,0.00237417,92664.0,92646.0,0.14554002]
[1768796260090,0.00237417,92664.0,92650.0,0.15456682]
[1768796261192,0.00237417,92664.0,92651.0,0.010799]
[1768796262590,0.00237405,92669.0,92654.0,0.15456682]
[1768796262897,0.0972,92672.0,92654.0,0.0198248]
[1768796263095,0.1161654,92675.0,92660.0,0.14554002]
[1768796263286,0.0189654,92673.0,92654.0,0.0090268]
[1768796263494,0.0189654,92672.0,92650.0,0.14554002]
[1768796263794,0.0189654,92671.0,92658.0,0.00016192]
[1768796264394,0.010796,92670.0,92658.0,0.00016192]
[1768796264997,0.010797,92667.0,92658.0,0.00016192]
[1768796265388,0.00928988,92663.0,92650.0,0.24274002]
[1768796266392,0.00928988,92663.0,92650.0,0.0972]
[1768796266698,0.00928988,92663.0,92650.0,0.24274002]
[1768796269598,0.010797,92662.0,92650.0,0.24274002]
[1768796272700,0.02047252,92664.0,92650.0,0.24274002]
[1768796278006,0.010797,92662.0,92650.0,0.24274002]
[1768796278597,0.00967552,92664.0,92650.0,0.24274002]
[1768796279198,0.010797,92663.0,92650.0,0.24274002]
[1768796280200,0.010797,92666.0,92650.0,0.24274002]
[1768796280400,0.02393037,92665.0,92650.0,0.24274002]
[1768796280599,0.010797,92666.0,92650.0,0.24274002]
[1768796280802,0.02393036,92665.0,92650.0,0.24274002]
[1768796281002,0.010797,92666.0,92650.0,0.24274002]
[1768796281207,0.02393036,92665.0,92650.0,0.24274002]
[1768796281516,0.010797,92664.0,92650.0,0.24274002]
[1768796281716,0.010797,92664.0,92650.0,0.0972]
[1768796281919,0.010797,92664.0,92650.0,0.24274002]
[1768796284219,0.010797,92664.0,92650.0,0.14554002]
[1768796285317,0.0239456,92663.0,92650.0,0.14554002]
[1768796285515,0.010797,92664.0,92650.0,0.14554002]
[1768796285716,0.0239456,92663.0,92650.0,0.14554002]
[1768796285915,0.010797,92664.0,92650.0,0.14554002]
[1768796286218,0.0239456,92663.0,92650.0,0.14554002]
[1768796286421,0.010797,92664.0,92650.0,0.14554002]
[1768796286612,0.02394996,92663.0,92650.0,0.14554002]
[1768796286813,0.010797,92664.0,92650.0,0.14554002]
[1768796287012,0.02394996,92663.0,92650.0,0.14554002]
[1768796287212,0.02395497,92662.0,92650.0,0.14554002]
[1768796287412,0.010797,92664.0,92650.0,0.14554002]
[1768796287613,0.02395546,92663.0,92650.0,0.14554002]
[1768796287812,0.02395546,92662.0,92650.0,0.14554002]
[1768796288112,0.010797,92664.0,92650.0,0.14554002]
[1768796288308,0.02396243,92663.0,92650.0,0.14554002]
[1768796288512,0.03475943,92662.0,92650.0,0.14554002]
[1768796288708,0.010797,92662.0,92650.0,0.14554002]
[1768796289316,0.02397413,92661.0,92650.0,0.14554002]
[1768796289517,0.02397413,92660.0,92650.0,0.14554002]
[1768796289720,0.010797,92662.0,92650.0,0.14554002]
[1768796289920,0.02397413,92661.0,92650.0,0.14554002]
[1768796290122,0.02397413,92660.0,92650.0,0.14554002]
[1768796290312,0.010797,92662.0,92650.0,0.14554002]
[1768796290622,0.02397603,92661.0,92650.0,0.14554002]
[1768796290823,0.02397603,92660.0,92650.0,0.14554002]
[1768796291023,0.010797,92662.0,92650.0,0.14554002]
[1768796291223,0.02397603,92661.0,92650.0,0.14554002]
[1768796291424,0.02397603,92660.0,92650.0,0.14554002]
[1768796291627,0.010797,92662.0,92650.0,0.14554002]
[1768796291816,0.02397804,92661.0,92650.0,0.14554002]
[1768796292016,0.02397804,92660.0,92650.0,0.14554002]
[1768796292211,0.010797,92662.0,92650.0,0.14554002]
[1768796292426,0.010798,92660.0,92649.0,0.00237457]
[1768796292624,0.010798,92660.0,92650.0,0.14554002]
[1768796293427,0.010798,92660.0,92649.0,0.00237457]
[1768796293428,0.02398145,92659.0,92649.0,0.00237457]
[1768796293622,0.010798,92660.0,92649.0,0.00237457]
[1768796293825,0.02398145,92659.0,92649.0,0.00237457]
[1768796294027,0.010798,92660.0,92649.0,0.00237457]
[1768796294225,0.02398181,92659.0,92649.0,0.00237457]
[1768796294426,0.010797,92663.0,92649.0,0.00237457]
[1768796294629,0.02398185,92662.0,92649.0,0.00237457]
[1768796294828,0.02398185,92661.0,92649.0,0.00237457]
[1768796295028,0.02398185,92660.0,92649.0,0.00237457]
[1768796295231,0.02398185,92659.0,92649.0,0.00237457]
[1768796295429,0.010797,92663.0,92649.0,0.00237457]
[1768796295630,0.02398231,92662.0,92649.0,0.00237457]
[1768796295930,0.02398231,92661.0,92650.0,0.14554002]
[1768796296130,0.02398231,92660.0,92650.0,0.14554002]
[1768796296326,0.02398231,92659.0,92649.0,5.7e-07]
[1768796296524,0.010799,92651.0,92631.0,0.010801]
[1768796296721,0.010799,92651.0,92633.0,0.010801]
[1768796297022,0.010799,92651.0,92637.0,0.00948542]
[1768796297225,0.01096092,92651.0,92637.0,0.00948542]
[1768796297420,0.01096092,92651.0,92639.0,0.00948542]
[1768796297630,0.01096092,92651.0,92632.0,0.0972]
[1768796297631,0.00016192,92651.0,92640.0,0.00948542]
[1768796297837,0.00016192,92651.0,92637.0,0.00948542]
[1768796298019,0.00016192,92651.0,92635.0,0.0108]
[1768796298020,0.00016192,92651.0,92640.0,0.00948542]
[1768796298224,0.00016192,92651.0,92639.0,0.00948542]
[1768796298426,0.00016192,92651.0,92641.0,0.00948542]
[1768796298624,0.00016192,92651.0,92639.0,0.00948542]
[1768796298830,0.00016192,92651.0,92640.0,0.14554002]
[1768796299031,0.00016192,92651.0,92641.0,0.00948542]
[1768796299533,0.00016192,92651.0,92642.0,0.00948542]
[1768796299733,0.00016192,92651.0,92640.0,0.14554002]
[1768796300234,0.00016192,92651.0,92641.0,0.00948542]
[1768796300436,0.00016192,92651.0,92640.0,0.14554002]
[1768796300627,0.00016192,92651.0,92642.0,0.00948542]
[1768796301135,0.00016192,92651.0,92643.0,0.00948542]
[1768796301434,0.00016192,92651.0,92640.0,0.14554002]
[1768796301634,0.00016192,92651.0,92639.0,0.00948542]
[1768796301836,0.00016192,92651.0,92641.0,0.00948542]
[1768796302136,0.00016192,92651.0,92639.0,0.00948542]
[1768796302537,0.00016192,92651.0,92641.0,0.00948542]
[1768796302737,0.00016192,92651.0,92636.0,0.0108]
[1768796302738,0.00016192,92651.0,92639.0,0.00948542]
[1768796302929,0.00016192,92651.0,92640.0,0.15502544]
[1768796303330,0.00016192,92651.0,92642.0,0.00948542]
[1768796303829,0.00016192,92651.0,92643.0,0.00948542]
[1768796304025,0.01096092,92651.0,92644.0,0.00948542]
[1768796305028,0.01096092,92651.0,92645.0,0.00948542]
[1768796306143,0.00016192,92651.0,92645.0,0.00948542]
[1768796307144,0.00016192,92651.0,92646.0,0.00948542]
[1768796307345,0.00016192,92651.0,92641.0,0.00948542]
[1768796307748,0.00016192,92651.0,92644.0,0.00948542]
[1768796307949,0.00016192,92651.0,92641.0,0.00948542]
[1768796308339,0.00016192,92651.0,92644.0,0.00948542]
[1768796308544,0.00016192,92651.0,92641.0,0.00948542]
[1768796308745,0.00016192,92651.0,92644.0,0.00948542]
[1768796309047,0.00016192,92651.0,92641.0,0.00948542]
[1768796309653,0.00016192,92651.0,92642.0,0.00948542]
[1768796310340,0.00016192,92651.0,92645.0,0.00948542]
[1768796310637,0.00016192,92651.0,92642.0,0.00948542]
[1768796311149,0.00016192,92651.0,92636.0,0.00482085]
[1768796311150,0.00016192,92651.0,92645.0,0.00948542]
[1768796311448,0.00016192,92651.0,92642.0,0.00948542]
[1768796311650,0.00016192,92651.0,92645.0,0.00948542]
[1768796312052,0.00016192,92651.0,92647.0,0.00948542]
[1768796312253,0.00016192,92651.0,92645.0,0.00948542]
[1768796312757,0.00016192,92651.0,92647.0,0.00948542]
[1768796312942,0.00016192,92651.0,92645.0,0.00948542]
[1768796313342,0.00016192,92651.0,92647.0,0.00948542]
[1768796313551,0.00016192,92651.0,92643.0,0.00948542]
[1768796313758,0.00016192,92651.0,92644.0,0.00948542]
[1768796314359,0.00016192,92651.0,92647.0,0.00948542]
[1768796314555,0.00016192,92651.0,92644.0,0.00948542]
[1768796315146,0.00016192,92651.0,92647.0,0.00948542]
[1768796315346,0.00016192,92651.0,92644.0,0.00948542]
[1768796315954,0.00016192,92651.0,92645.0,0.00948542]
[1768796316455,0.00016192,92651.0,92648.0,0.00948542]
[1768796316751,0.107998,92659.0,92645.0,0.00948542]
[1768796316949,0.02406343,92658.0,92643.0,0.01457372]
[1768796317148,0.02406343,92657.0,92643.0,0.01457372]
[1768796317460,0.02406343,92656.0,92644.0,0.00948542]
[1768796317643,0.02406343,92655.0,92644.0,0.00948542]
[1768796317949,0.107998,92659.0,92645.0,0.00948542]
[1768796318254,0.02406422,92658.0,92645.0,0.00948542]
[1768796318554,0.02406422,92657.0,92645.0,0.00948542]
[1768796318754,0.02406422,92656.0,92646.0,0.00948542]
[1768796318953,0.02406422,92655.0,92643.0,0.00948542]
[1768796319154,0.107998,92659.0,92643.0,0.00948542]
[1768796319356,0.02406623,92658.0,92645.0,0.00948542]
[1768796319553,0.02406623,92657.0,92643.0,0.00948542]
[1768796319753,0.02406623,92656.0,92643.0,0.00948542]
[1768796320055,0.02406623,92655.0,92645.0,0.00948542]
[1768796320255,0.107998,92659.0,92643.0,0.00948542]
[1768796320453,0.02406749,92658.0,92643.0,0.00948542]
[1768796320755,0.02406749,92657.0,92645.0,0.00948542]
[1768796320951,0.02406749,92656.0,92644.0,0.02537201]
[1768796321262,0.00237417,92664.0,92655.0,0.00948542]
[1768796321556,0.00237405,92669.0,92661.0,0.00948542]
[1768796321740,0.00237405,92669.0,92653.0,0.00948542]
[1768796322056,0.00237405,92669.0,92655.0,0.010798]
[1768796322251,0.00237405,92669.0,92661.0,0.00948542]
[1768796322651,0.00237405,92669.0,92664.0,0.00948542]
[1768796322853,0.0972,92676.0,92662.0,0.00948542]
[1768796323056,0.0972,92676.0,92655.0,0.010798]
[1768796323458,0.010796,92675.0,92659.0,0.00948542]
[1768796323758,0.010796,92675.0,92656.0,0.00016192]
[1768796323964,0.0972,92676.0,92656.0,0.00016192]
[1768796324261,0.00933754,92675.0,92659.0,0.00948542]
[1768796324561,0.00933754,92675.0,92661.0,0.00948542]
[1768796324863,0.00933754,92675.0,92660.0,0.00948542]
[1768796325250,0.00933754,92675.0,92662.0,0.00948542]
[1768796325452,0.00933754,92675.0,92660.0,0.00948542]
[1768796325852,0.00933754,92675.0,92662.0,0.00948542]
[1768796326051,0.00933754,92675.0,92660.0,0.00948542]
[1768796326549,0.00933754,92675.0,92662.0,0.00948542]
[1768796326746,0.010796,92674.0,92660.0,0.00948542]
[1768796327261,0.010796,92674.0,92663.0,0.00948542]
[1768796327462,0.010796,92674.0,92661.0,0.00948542]
[1768796327961,0.00933754,92675.0,92664.0,0.00948542]
[1768796328261,0.00933754,92675.0,92656.0,0.00016192]
[1768796328262,0.00933754,92675.0,92661.0,0.00948542]
[1768796328958,0.010796,92671.0,92663.0,0.00948542]
[1768796329165,0.00933754,92670.0,92661.0,0.00948542]
[1768796329361,0.00933754,92670.0,92663.0,0.00948542]
[1768796329664,0.010797,92669.0,92656.0,0.00016192]
[1768796330259,0.02013454,92669.0,92656.0,0.00016192]
[1768796330460,0.010797,92666.0,92656.0,0.00016192]
[1768796331359,0.00933754,92669.0,92656.0,0.00016192]
[1768796332957,0.010797,92668.0,92656.0,0.00016192]
[1768796333359,0.02055162,92668.0,92656.0,0.00016192]
[1768796333663,0.00975462,92667.0,92656.0,0.00016192]
[1768796333864,0.02055162,92666.0,92656.0,0.00016192]
[1768796334163,0.02055162,92664.0,92656.0,0.00016192]
[1768796335255,0.00975462,92664.0,92656.0,0.00016192]
[1768796335460,0.00975462,92658.0,92649.0,0.00237457]
[1768796335665,0.00975462,92658.0,92644.0,0.00237468]
[1768796335666,0.00975462,92658.0,92648.0,0.01450194]
[1768796336472,0.00975462,92657.0,92648.0,0.01450194]
[1768796337676,0.00976031,92662.0,92648.0,0.01450194]
[1768796337871,0.00975462,92661.0,92648.0,0.01450194]
[1768796339676,0.00975462,92661.0,92648.0,0.02530094]
[1768796339877,0.10691462,92667.0,92648.0,0.02530094]
[1768796340178,0.00975462,92666.0,92648.0,0.02530094]
[1768796342975,0.09716,92667.0,92648.0,0.01450194]
[1768796343280,0.09716,92667.0,92652.0,0.010798]
[1768796344069,0.00016192,92669.0,92652.0,0.010798]
[1768796344466,0.00016192,92669.0,92654.0,0.010798]
[1768796345575,0.10691462,92681.0,92655.0,0.10791968]
[1768796345776,0.00975462,92679.0,92655.0,0.10791968]
[1768796345976,0.02386558,92678.0,92652.0,0.00016192]
[1768796346177,0.02386558,92677.0,92663.0,0.010797]
[1768796346370,0.02386558,92676.0,92663.0,0.010797]
[1768796346571,0.02386558,92675.0,92663.0,0.010797]
[1768796346766,0.00975462,92679.0,92663.0,0.010797]
[1768796346767,0.02386558,92674.0,92663.0,0.010797]
[1768796346982,0.02386558,92673.0,92663.0,0.010797]
[1768796347182,0.00975462,92679.0,92663.0,0.010797]
[1768796347372,0.02386943,92678.0,92663.0,0.010797]
[1768796347575,0.02386943,92677.0,92663.0,0.010797]
[1768796347775,0.00975462,92679.0,92661.0,0.09716]
[1768796347776,0.00975462,92679.0,92666.0,0.010797]
[1768796348085,0.02386829,92678.0,92666.0,0.010797]
[1768796348283,0.09716,92681.0,92666.0,0.010797]
[1768796348483,0.02386889,92680.0,92669.0,0.010796]
[1768796348677,0.00237366,92684.0,92669.0,0.010796]
[1768796348872,0.02386785,92683.0,92669.0,0.010796]
[1768796349078,0.02386785,92682.0,92669.0,0.00842195]
[1768796349384,0.00237366,92684.0,92669.0,0.00842195]
[1768796349578,0.02386685,92683.0,92669.0,0.00842195]
[1768796349778,0.02386685,92682.0,92669.0,0.00842195]
[1768796349981,0.00237366,92684.0,92669.0,0.00842195]
[1768796350187,0.02386684,92683.0,92669.0,0.00842195]
[1768796350386,0.02386684,92682.0,92669.0,0.00842195]
[1768796350579,0.00237366,92684.0,92669.0,0.00842195]
[1768796350779,0.02386783,92683.0,92669.0,0.00842195]
[1768796351084,0.02386783,92682.0,92669.0,0.00842195]
[1768796351287,0.00237366,92684.0,92669.0,0.00842195]
[1768796351481,0.02386625,92683.0,92669.0,0.00842195]
[1768796351682,0.02386625,92682.0,92669.0,0.00842195]
[1768796351982,0.00237366,92684.0,92669.0,0.00842195]
[1768796352190,0.02386598,92683.0,92669.0,0.00842195]
[1768796352375,0.00237366,92684.0,92669.0,0.00842195]
[1768796352575,0.02386281,92683.0,92669.0,0.00842195]
[1768796352777,0.02386281,92683.0,92661.0,0.09716]
[1768796352778,0.00237366,92684.0,92661.0,0.09716]
[1768796352986,0.00237366,92684.0,92673.0,0.010796]
[1768796354487,0.00237366,92684.0,92672.0,0.09716]
[1768796357886,0.010795,92682.0,92672.0,0.09716]
[1768796359187,0.02054962,92682.0,92672.0,0.09716]
[1768796360695,0.00975462,92682.0,92672.0,0.09716]
[1768796362691,0.00237366,92684.0,92672.0,0.09716]
[1768796367897,0.010795,92683.0,92672.0,0.09716]
[1768796369096,0.00237366,92684.0,92672.0,0.09716]
[1768796371100,0.009721,92682.0,92663.0,0.010797]
[1768796371401,0.010795,92679.0,92664.0,0.09716]
[1768796371606,0.009721,92679.0,92665.0,0.09716]
[1768796375215,0.010796,92678.0,92665.0,0.09716]
[1768796377211,0.010796,92678.0,92660.0,0.14542874]
[1768796377515,0.020517,92678.0,92661.0,0.20506804]
[1768796377915,0.020517,92678.0,92661.0,0.21586504]
[1768796378908,0.009721,92678.0,92661.0,0.21586504]
[1768796383824,0.010795,92682.0,92661.0,0.21586504]
[1768796384213,0.010795,92682.0,92664.0,0.010797]
[1768796384422,0.010795,92682.0,92670.0,0.14542874]
[1768796387830,0.010795,92682.0,92664.0,0.010797]
[1768796388027,0.010795,92682.0,92670.0,0.14542874]
[1768796389526,0.00237366,92684.0,92668.0,0.09716]
[1768796389527,0.010795,92680.0,92668.0,0.09716]
[1768796391628,0.05218067,92712.0,92670.0,0.14542874]
[1768796391926,0.00998943,92701.0,92672.0,0.010796]
[1768796392131,0.02373545,92700.0,92672.0,0.010796]
[1768796392330,0.02373545,92699.0,92671.0,0.11870112]
[1768796392523,0.02373545,92699.0,92677.0,0.00016192]
[1768796392524,0.00922966,92697.0,92677.0,0.00016192]
[1768796392824,0.00922966,92695.0,92678.0,0.09716]
[1768796393224,0.00922966,92695.0,92677.0,0.00016192]
[1768796393428,0.00922966,92695.0,92678.0,0.09716]
[1768796393732,0.14542874,92690.0,92677.0,0.00016192]
[1768796393930,0.14542874,92690.0,92678.0,0.09716]
[1768796394625,0.1546584,92690.0,92678.0,0.09716]
[1768796395032,0.00922966,92690.0,92678.0,0.09716]
[1768796395224,0.1546584,92690.0,92677.0,0.00016192]
[1768796395421,0.01861617,92688.0,92677.0,0.00016192]
[1768796396030,0.00922966,92688.0,92677.0,0.00016192]
[1768796397223,0.00922966,92685.0,92669.0,0.05811204]
[1768796397430,0.00922966,92685.0,92670.0,0.09716]
[1768796397631,0.00922966,92685.0,92671.0,0.09716]
[1768796397830,0.00922966,92685.0,92670.0,0.09716]
[1768796398435,0.01861617,92685.0,92670.0,0.09716]
[1768796398628,0.00922966,92684.0,92670.0,0.09716]
[1768796399029,0.00922966,92683.0,92670.0,0.09716]
[1768796408751,0.010795,92682.0,92670.0,0.09716]
[1768796408939,0.1546584,92680.0,92670.0,0.09716]
[1768796409843,0.00922966,92680.0,92670.0,0.09716]
[1768796410946,0.010797,92668.0,92664.0,1.7e-07]
[1768796411145,0.010796,92672.0,92664.0,1.7e-07]
[1768796411649,0.02002666,92670.0,92664.0,1.7e-07]
[1768796411955,0.00922966,92669.0,92664.0,1.7e-07]
[1768796412139,0.010797,92668.0,92664.0,1.7e-07]
[1768796412333,0.00922966,92667.0,92664.0,1.7e-07]
[1768796414851,0.02002566,92672.0,92664.0,1.7e-07]
[1768796415647,0.00922966,92672.0,92664.0,1.7e-07]
[1768796416938,0.00922966,92677.0,92664.0,1.7e-07]
[1768796419657,0.010796,92676.0,92664.0,1.7e-07]
[1768796420155,0.010796,92673.0,92664.0,1.7e-07]
[1768796420456,0.02002566,92676.0,92664.0,1.7e-07]
[1768796420654,0.00922966,92676.0,92664.0,1.7e-07]
[1768796420956,0.00922966,92678.0,92664.0,1.7e-07]
[1768796424158,0.00908416,92683.0,92664.0,1.7e-07]
[1768796424358,0.02250243,92682.0,92664.0,1.7e-07]
[1768796424553,0.02250243,92681.0,92664.0,1.7e-07]
[1768796424756,0.00908416,92683.0,92664.0,1.7e-07]
[1768796424950,0.02250242,92682.0,92664.0,1.7e-07]
[1768796425144,0.00908416,92683.0,92664.0,0.09716017]
[1768796425349,0.03158843,92682.0,92664.0,0.09716017]
[1768796425551,0.00908416,92679.0,92664.0,0.09716017]
[1768796425958,0.010796,92678.0,92664.0,0.09716017]
[1768796426159,0.00908416,92677.0,92664.0,0.09716017]
[1768796427052,0.010796,92676.0,92664.0,0.09716017]
[1768796427252,0.00908416,92677.0,92664.0,0.09716017]
[1768796432061,0.00902482,92676.0,92664.0,1.7e-07]
[1768796432366,0.00908416,92675.0,92664.0,1.7e-07]
[1768796433559,0.01988016,92675.0,92664.0,1.7e-07]
[1768796433768,0.01988016,92672.0,92664.0,1.7e-07]
[1768796433965,0.00908416,92671.0,92664.0,1.7e-07]
[1768796435670,0.00908416,92669.0,92664.0,1.7e-07]
[1768796435858,0.01988116,92666.0,92664.0,1.7e-07]
[1768796436166,0.00908416,92665.0,92664.0,1.7e-07]
[1768796439978,0.00958581,92665.0,92651.0,0.05811204]
[1768796440268,0.00958581,92665.0,92650.0,0.05811204]
[1768796440470,0.00970576,92662.0,92650.0,0.05811204]
[1768796440665,0.00951809,92657.0,92650.0,0.05811204]
[1768796440867,0.02031609,92656.0,92649.0,0.14991026]
[1768796442077,0.00941584,92647.0,92639.0,8.8e-07]
[1768796442768,0.01893393,92651.0,92639.0,8.8e-07]
[1768796442978,0.010799,92650.0,92639.0,8.8e-07]
[1768796443586,0.02021484,92650.0,92639.0,8.8e-07]
[1768796443878,0.00941584,92649.0,92639.0,8.8e-07]
[1768796448068,0.00941584,92648.0,92639.0,8.8e-07]
[1768796448268,0.00941584,92646.0,92639.0,8.8e-07]
[1768796449590,0.010799,92645.0,92639.0,8.8e-07]
[1768796449787,0.02021484,92645.0,92639.0,8.8e-07]
[1768796450490,0.00941584,92644.0,92639.0,8.8e-07]
[1768796450692,0.01893393,92644.0,92639.0,8.8e-07]
[1768796450997,0.01893393,92642.0,92639.0,8.8e-07]
[1768796452892,0.02154068,92641.0,92639.0,8.8e-07]
[1768796453194,0.00922034,92641.0,92639.0,8.8e-07]
[1768796455397,0.02154068,92640.0,92639.0,8.8e-07]
[1768796459201,0.01232034,92640.0,92629.0,0.02720088]
[1768796459704,0.00922034,92639.0,92629.0,0.02720088]
[1768796460292,0.00922034,92641.0,92629.0,0.02720088]
[1768796460497,0.00922034,92640.0,92629.0,0.02720088]
[1768796460704,0.00922034,92638.0,92624.0,0.00237519]
[1768796460904,0.0108,92639.0,92624.0,0.00237519]
[1768796461404,0.02154068,92625.0,92619.0,0.00967481]
[1768796461604,0.02154068,92625.0,92613.0,0.0972]
[1768796461806,0.00922034,92629.0,92613.0,0.0972]
[1768796462098,0.00922034,92635.0,92615.0,0.010803]